bitfinex/quotes_SOLUSD_20241107
["timestamp","ask_amount","ask_price","bid_price","bid_amount"]
[1730960404896,7.93570427,187.7,187.63,7.93570427]
[1730960405206,7.93570427,187.68,187.6,0.18161196]
[1730960405405,7.93570427,187.66,187.6,8.11731623]
[1730960405610,7.93570427,187.66,187.6,7.93570427]
[1730960406602,7.93570427,187.67,187.6,7.93570427]
[1730960407026,7.93570427,187.68,187.62,7.93570427]
[1730960407189,8.06119427,187.69,187.62,7.93570427]
[1730960407389,7.93570427,187.68,187.62,7.93570427]
[1730960408298,7.93570427,187.69,187.63,7.93570427]
[1730960408514,7.93570427,187.7,187.64,7.93570427]
[1730960409087,6.0218,187.72,187.66,7.93570427]
[1730960409088,7.93570427,187.72,187.66,7.93570427]
[1730960409814,7.93570427,187.72,187.65,7.93570427]
[1730960410219,7.93570427,187.71,187.65,7.93570427]
[1730960410589,7.93570427,187.72,187.65,7.93570427]
[1730960410787,7.93570427,187.72,187.66,7.93570427]
[1730960411189,15.0617,187.74,187.67,7.93570427]
[1730960411419,7.93570427,187.74,187.67,7.93570427]
[1730960411620,7.93570427,187.73,187.67,7.93570427]
[1730960413810,7.93570427,187.72,187.66,7.93570427]
[1730960414634,7.93570427,187.72,187.61,23.776884]
[1730960414789,7.93570427,187.72,187.6,31.74281708]
[1730960414790,7.93570427,187.7,187.63,7.93570427]
[1730960415111,7.93570427,187.69,187.62,7.93570427]
[1730960415316,7.93570427,187.69,187.59,16.3667]
[1730960415494,7.93570427,187.69,187.62,7.93570427]
[1730960415689,7.93570427,187.68,187.61,7.93570427]
[1730960416322,5.4265,187.75,187.59,16.3667]
[1730960416323,7.93570427,187.66,187.59,24.30240427]
[1730960416819,7.93570427,187.64,187.57,7.93570427]
[1730960417112,7.93570427,187.63,187.56,7.93570427]
[1730960417519,7.93570427,187.64,187.57,7.93570427]
[1730960418120,7.93570427,187.63,187.56,27.93570427]
[1730960418414,7.93570427,187.63,187.57,7.93570427]
[1730960419019,7.93570427,187.63,187.55,15.225]
[1730960419197,7.93570427,187.61,187.55,7.93570427]
[1730960419397,7.93570427,187.61,187.54,7.93570427]
[1730960420600,7.93570427,187.61,187.55,7.93570427]
[1730960421912,7.93570427,187.61,187.54,7.93570427]
[1730960422520,7.93570427,187.61,187.55,7.93570427]
[1730960423923,7.93570427,187.6,187.51,16.024]
[1730960424120,0.32549,187.66,187.51,16.024]
[1730960424121,7.93570427,187.59,187.53,7.93570427]
[1730960424326,7.93570427,187.6,187.53,7.93570427]
[1730960424838,0.1,187.67,187.55,7.93570427]
[1730960425000,7.93570427,187.61,187.55,7.93570427]
[1730960425333,43.876884,187.68,187.56,7.93570427]
[1730960425502,7.93570427,187.63,187.56,7.93570427]
[1730960426201,7.93570427,187.62,187.56,7.93570427]
[1730960426609,0.12549,187.67,187.56,7.93570427]
[1730960426610,7.93570427,187.63,187.56,7.93570427]
[1730960427120,7.93570427,187.62,187.56,7.93570427]
[1730960427312,7.93570427,187.6,187.54,7.93570427]
[1730960428303,7.93570427,187.62,187.55,7.93570427]
[1730960429409,0.12549,187.61,187.51,16.024]
[1730960429616,7.93570427,187.61,187.55,7.93570427]
[1730960430728,23.902374,187.65,187.55,7.93570427]
[1730960430933,0.12549,187.6,187.55,7.93570427]
[1730960431609,0.12549,187.65,187.55,7.93570427]
[1730960431811,0.12549,187.6,187.55,7.93570427]
[1730960434535,0.12549,187.65,187.55,7.93570427]
[1730960434710,0.12549,187.6,187.55,7.93570427]
[1730960436913,5.50165573,187.67,187.58,7.93570427]
[1730960437114,7.93570427,187.64,187.58,7.93570427]
[1730960437522,0.12549,187.63,187.58,7.93570427]
[1730960437730,8.06119427,187.63,187.57,7.93570427]
[1730960439337,7.93570427,187.62,187.52,20.0]
[1730960439520,0.12549,187.66,187.55,7.93570427]
[1730960439521,7.93570427,187.61,187.55,7.93570427]
[1730960439835,7.93570427,187.62,187.56,7.93570427]
[1730960440028,0.12549,187.62,187.56,7.93570427]
[1730960441238,8.06119427,187.62,187.52,20.0]
[1730960441419,7.93570427,187.59,187.51,16.024]
[1730960441620,7.93570427,187.59,187.53,7.93570427]
[1730960441822,8.06119427,187.6,187.54,7.93570427]
[1730960442727,8.06119427,187.6,187.51,16.024]
[1730960442937,16.0938,187.63,187.5,7.93570427]
[1730960442938,7.93570427,187.56,187.5,7.93570427]
[1730960443143,0.12549,187.55,187.49,7.93570427]
[1730960443351,0.12549,187.53,187.47,7.93570427]
[1730960443546,0.1,187.58,187.46,7.93570427]
[1730960443547,0.22549,187.58,187.46,7.93570427]
[1730960443853,0.12549,187.52,187.46,7.93570427]
[1730960444345,7.93570427,187.51,187.42,16.1878]
[1730960444545,0.12549,187.5,187.44,7.93570427]
[1730960445143,0.12549,187.5,187.42,16.1878]
[1730960445331,0.12549,187.48,187.38,1.31916876]
[1730960445520,0.12549,187.48,187.37,16.2696]
[1730960445521,8.06119427,187.48,187.42,7.93570427]
[1730960445725,0.12549,187.49,187.43,7.93570427]
[1730960447123,0.12549,187.48,187.42,7.93570427]
[1730960447824,8.06119427,187.48,187.41,7.93570427]
[1730960448023,7.93570427,187.47,187.4,7.93570427]
[1730960448219,0.12549,187.47,187.42,7.93570427]
[1730960449344,7.93570427,187.47,187.38,20.0]
[1730960449547,23.902374,187.52,187.42,7.93570427]
[1730960449724,0.12549,187.49,187.43,7.93570427]
[1730960450126,8.06119427,187.49,187.42,7.93570427]
[1730960450624,7.93570427,187.46,187.38,20.0]
[1730960450833,7.93570427,187.46,187.39,7.93570427]
[1730960451035,8.06119427,187.47,187.4,7.93570427]
[1730960451746,0.12549,187.47,187.42,7.93570427]
[1730960452269,23.776884,187.52,187.37,16.2696]
[1730960452270,0.12549,187.45,187.37,16.2696]
[1730960452425,0.12549,187.45,187.39,7.93570427]
[1730960452836,7.93570427,187.47,187.4,7.93570427]
[1730960453050,0.12549,187.46,187.4,7.93570427]
[1730960453844,0.12549,187.46,187.41,7.93570427]
[1730960454057,29.2815769,187.52,187.43,7.93570427]
[1730960454237,0.12549,187.48,187.43,7.93570427]
[1730960454843,0.12549,187.47,187.37,16.2696]
[1730960455025,31.83807827,187.47,187.41,7.93570427]
[1730960456156,0.12549,187.45,187.39,7.93570427]
[1730960456360,0.12549,187.45,187.37,16.2696]
[1730960456647,0.12549,187.43,187.38,7.93570427]
[1730960456852,0.12549,187.43,187.39,7.93570427]
[1730960457151,0.12549,187.43,187.37,16.2696]
[1730960457152,7.93570427,187.46,187.37,16.2696]
[1730960457456,0.12549,187.44,187.39,7.93570427]
[1730960457744,0.12549,187.44,187.4,7.93570427]
[1730960458458,0.12549,187.45,187.4,7.93570427]
[1730960459141,0.12549,187.45,187.39,7.93570427]
[1730960460435,0.12549,187.44,187.37,16.2696]
[1730960460642,0.12549,187.44,187.38,7.93570427]
[1730960460842,0.12549,187.44,187.39,7.93570427]
[1730960461455,0.12549,187.44,187.38,7.93570427]
[1730960462735,0.12549,187.44,187.37,16.2696]
[1730960462736,0.12549,187.44,187.39,7.93570427]
[1730960464841,23.776884,187.47,187.4,7.93570427]
[1730960465060,31.71258827,187.47,187.41,7.93570427]
[1730960465459,7.93570427,187.48,187.42,7.93570427]
[1730960465657,7.93570427,187.49,187.42,7.93570427]
[1730960466154,0.12549,187.48,187.42,7.93570427]
[1730960466857,7.93570427,187.5,187.43,7.93570427]
[1730960467066,7.93570427,187.5,187.44,7.93570427]
[1730960467370,7.93570427,187.5,187.37,16.2696]
[1730960467371,7.93570427,187.5,187.43,7.93570427]
[1730960467538,0.12549,187.49,187.43,7.93570427]
[1730960470446,31.71258827,187.52,187.45,7.93570427]
[1730960470645,14.43890427,187.53,187.47,7.93570427]
[1730960470841,28.44744745,187.54,187.48,7.93570427]
[1730960471045,5.49684318,187.54,187.48,7.93570427]
[1730960471751,5.49684318,187.54,187.4,31.74281708]
[1730960471752,5.49684318,187.54,187.5,7.93570427]
[1730960471967,0.12549,187.55,187.5,7.93570427]
[1730960472164,7.93570427,187.56,187.49,7.93570427]
[1730960472476,15.9234,187.58,187.5,7.93570427]
[1730960472642,7.93570427,187.56,187.5,7.93570427]
[1730960473051,7.93570427,187.57,187.51,7.93570427]
[1730960473254,7.93570427,187.56,187.5,7.93570427]
[1730960474590,7.93570427,187.56,187.49,7.93570427]
[1730960475167,23.902374,187.6,187.5,7.93570427]
[1730960475375,7.93570427,187.54,187.48,7.93570427]
[1730960475588,7.93570427,187.55,187.48,7.93570427]
[1730960475876,7.93570427,187.55,187.49,7.93570427]
[1730960476778,23.902374,187.6,187.49,7.93570427]
[1730960477073,7.93570427,187.55,187.49,7.93570427]
[1730960477479,6.5699,187.61,187.52,7.93570427]
[1730960477480,7.93570427,187.58,187.52,7.93570427]
[1730960477647,7.93570427,187.57,187.51,15.4185]
[1730960478477,7.93570427,187.56,187.51,15.4185]
[1730960479273,7.93570427,187.57,187.51,23.35420427]
[1730960480272,7.93570427,187.57,187.51,15.4185]
[1730960480657,7.93570427,187.57,187.46,6.0239]
[1730960480658,7.93570427,187.54,187.46,22.1086]
[1730960480858,7.93570427,187.54,187.48,7.93570427]
[1730960481965,0.12549,187.59,187.48,7.93570427]
[1730960481966,23.902374,187.59,187.48,7.93570427]
[1730960482272,7.93570427,187.57,187.5,7.93570427]
[1730960482478,8.06119427,187.56,187.46,22.1086]
[1730960482673,8.06119427,187.56,187.49,7.93570427]
[1730960482968,8.06119427,187.56,187.48,7.93570427]
[1730960483160,23.776884,187.59,187.47,7.93570427]
[1730960483161,0.12549,187.54,187.47,7.93570427]
[1730960483868,0.12549,187.54,187.48,7.93570427]
[1730960484456,0.12549,187.55,187.49,7.93570427]
[1730960484656,7.93570427,187.57,187.49,7.93570427]
[1730960484969,7.93570427,187.59,187.52,7.93570427]
[1730960485179,7.93570427,187.61,187.54,7.93570427]
[1730960485482,21.23912391,187.62,187.56,7.93570427]
[1730960485778,15.7452,187.62,187.56,7.93570427]
[1730960486285,0.12549,187.61,187.56,7.93570427]
[1730960486475,15.7452,187.62,187.56,7.93570427]
[1730960486781,11.79920389,187.65,187.6,7.93570427]
[1730960486979,5.49350389,187.65,187.61,7.93570427]
[1730960487161,14.02460427,187.7,187.63,7.93570427]
[1730960487365,14.02460427,187.7,187.54,21.5593]
[1730960487366,16.4254,187.72,187.55,43.776884]
[1730960487676,16.4254,187.72,187.65,7.93570427]
[1730960487677,7.93570427,187.71,187.65,7.93570427]
[1730960487854,7.93570427,187.71,187.64,7.93570427]
[1730960488055,0.12549,187.7,187.64,7.93570427]
[1730960488250,7.93570427,187.68,187.55,43.776884]
[1730960488480,7.93570427,187.69,187.63,7.93570427]
[1730960488871,7.93570427,187.69,187.62,7.93570427]
[1730960489374,12.38960947,187.69,187.62,12.38960947]
[1730960490258,0.12549,187.69,187.63,12.38960947]
[1730960491056,12.51509947,187.71,187.64,12.38960947]
[1730960491379,0.12549,187.69,187.63,12.38960947]
[1730960491561,12.51509947,187.69,187.63,12.38960947]
[1730960492083,12.51509947,187.69,187.62,12.38960947]
[1730960494385,0.12549,187.69,187.63,12.38960947]
[1730960495054,12.51509947,187.69,187.62,12.38960947]
[1730960495791,12.38960947,187.68,187.61,12.38960947]
[1730960496486,0.12549,187.67,187.61,12.38960947]
[1730960496657,12.51509947,187.67,187.6,12.38960947]
[1730960496858,0.12549,187.67,187.62,12.38960947]
[1730960497078,0.12549,187.67,187.61,12.38960947]
[1730960500583,12.38960947,187.69,187.62,12.38960947]
[1730960500785,12.38960947,187.7,187.63,12.38960947]
[1730960501662,12.51509947,187.69,187.62,12.38960947]
[1730960501875,0.12549,187.67,187.61,12.38960947]
[1730960502303,12.38960947,187.69,187.62,12.38960947]
[1730960502488,12.38960947,187.69,187.63,12.38960947]
[1730960505278,12.38960947,187.7,187.63,12.38960947]
[1730960505479,21.91278987,187.72,187.56,0.22549]
[1730960505480,12.38960947,187.71,187.64,12.38960947]
[1730960506069,34.30239934,187.72,187.65,12.38960947]
[1730960506392,12.38960947,187.71,187.65,12.38960947]
[1730960507276,12.38960947,187.71,187.64,12.38960947]
[1730960507672,17.87699934,187.72,187.65,12.38960947]
[1730960508177,2.98738987,187.72,187.67,12.38960947]
[1730960508371,12.38960947,187.74,187.67,12.38960947]
[1730960508575,12.38960947,187.76,187.7,12.38960947]
[1730960508769,12.38960947,187.76,187.64,20.0]
[1730960508770,12.38960947,187.76,187.69,12.38960947]
[1730960509465,12.38960947,187.74,187.67,12.38960947]
[1730960509864,12.38960947,187.75,187.68,12.38960947]
[1730960510064,12.38960947,187.75,187.63,6.3151]
[1730960510065,12.38960947,187.75,187.69,12.38960947]
[1730960510495,12.38960947,187.74,187.67,12.38960947]
[1730960511287,7.92489671,187.74,187.67,7.92489671]
[1730960511783,0.12549,187.74,187.68,7.92489671]
[1730960511989,7.92489671,187.72,187.65,7.92489671]
[1730960512790,7.92489671,187.74,187.67,7.92489671]
[1730960512997,7.92489671,187.73,187.66,7.92489671]
[1730960513495,7.92489671,187.69,187.62,16.1126]
[1730960513885,7.92489671,187.68,187.62,16.1126]
[1730960514091,7.92489671,187.67,187.6,7.92489671]
[1730960514295,7.92489671,187.68,187.6,7.92489671]
[1730960514585,7.92489671,187.68,187.62,7.92489671]
[1730960514785,7.92489671,187.69,187.62,7.92489671]
[1730960515595,7.92489671,187.7,187.63,7.92489671]
[1730960517171,7.92489671,187.69,187.62,7.92489671]
[1730960518084,7.92489671,187.68,187.61,7.92489671]
[1730960518581,7.92489671,187.67,187.6,7.92489671]
[1730960519495,7.92489671,187.66,187.59,13.98459671]
[1730960520270,23.902374,187.69,187.59,13.98459671]
[1730960520489,7.92489671,187.65,187.59,6.0597]
[1730960520694,7.92489671,187.66,187.59,13.98459671]
[1730960520893,23.902374,187.7,187.6,7.92489671]
[1730960521193,7.92489671,187.67,187.6,7.92489671]
[1730960521401,23.902374,187.7,187.6,7.92489671]
[1730960521579,7.92489671,187.67,187.6,7.92489671]
[1730960521893,8.05038671,187.7,187.63,7.92489671]
[1730960522093,7.92489671,187.71,187.64,7.92489671]
[1730960523601,7.92489671,187.69,187.6,20.0]
[1730960523775,7.92489671,187.67,187.61,7.92489671]
[1730960524198,7.92489671,187.67,187.59,6.0597]
[1730960524199,7.92489671,187.67,187.6,7.92489671]
[1730960524879,7.92489671,187.66,187.59,6.0597]
[1730960525077,7.92489671,187.66,187.59,7.92489671]
[1730960527098,7.92489671,187.67,187.6,7.92489671]
[1730960527275,23.902374,187.7,187.6,7.92489671]
[1730960527597,7.92489671,187.67,187.6,7.92489671]
[1730960527797,7.92489671,187.68,187.61,7.92489671]
[1730960528499,7.92489671,187.68,187.58,16.3813]
[1730960528500,7.92489671,187.67,187.6,7.92489671]
[1730960530777,7.92489671,187.68,187.61,7.92489671]
[1730960531300,7.92489671,187.68,187.58,16.3813]
[1730960531301,7.92489671,187.67,187.6,7.92489671]
[1730960532786,7.92489671,187.68,187.61,7.92489671]
[1730960533994,7.92489671,187.67,187.61,7.92489671]
[1730960534196,0.12549,187.71,187.62,7.92489671]
[1730960534197,23.902374,187.71,187.62,7.92489671]
[1730960534498,7.92489671,187.69,187.63,7.92489671]
[1730960534888,7.92489671,187.69,187.62,7.92489671]
[1730960535278,7.92489671,187.68,187.61,7.92489671]
[1730960535479,7.92489671,187.67,187.61,7.92489671]
[1730960535684,7.92489671,187.67,187.6,7.92489671]
[1730960536876,0.12549,187.69,187.6,7.92489671]
[1730960537195,7.92489671,187.67,187.6,7.92489671]
[1730960537379,0.12549,187.69,187.6,7.92489671]
[1730960537581,7.92489671,187.67,187.6,7.92489671]
[1730960537884,0.12549,187.69,187.61,7.92489671]
[1730960538084,7.92489671,187.67,187.61,7.92489671]
[1730960538595,7.92489671,187.68,187.61,7.92489671]
[1730960539003,15.6682,187.73,187.62,7.92489671]
[1730960539293,7.92489671,187.7,187.63,7.92489671]
[1730960539702,23.776884,187.72,187.63,7.92489671]
[1730960539703,0.12549,187.71,187.63,7.92489671]
[1730960539900,7.92489671,187.7,187.63,7.92489671]
[1730960540100,15.6682,187.73,187.63,7.92489671]
[1730960540301,7.92489671,187.69,187.63,7.92489671]
[1730960540508,7.92489671,187.7,187.63,7.92489671]
[1730960540699,7.92489671,187.71,187.64,7.92489671]
[1730960540901,7.92489671,187.73,187.67,7.92489671]
[1730960541111,13.40376827,187.75,187.68,7.92489671]
[1730960541792,5.47887156,187.75,187.7,7.92489671]
[1730960542907,5.47887156,187.75,187.69,7.92489671]
[1730960543707,5.47887156,187.75,187.7,7.92489671]
[1730960544995,5.47887156,187.75,187.67,20.0]
[1730960545196,5.47887156,187.75,187.71,7.92489671]
[1730960545712,7.92489671,187.77,187.7,7.92489671]
[1730960546306,7.92489671,187.77,187.71,7.92489671]
[1730960546889,7.92489671,187.77,187.7,8.10100063]
[1730960547221,7.92489671,187.77,187.7,7.92489671]
[1730960547514,7.92489671,187.77,187.7,8.10100063]
[1730960547714,7.92489671,187.77,187.7,7.92489671]
[1730960548012,7.92489671,187.77,187.71,7.92489671]
[1730960549316,0.5771875,187.8,187.72,7.92489671]
[1730960549503,8.50208421,187.8,187.73,7.92489671]
[1730960550616,7.92489671,187.79,187.69,6.5279]
[1730960550817,7.92489671,187.79,187.72,7.92489671]
[1730960552024,7.92489671,187.79,187.73,7.92489671]
[1730960552323,7.92489671,187.78,187.72,7.92489671]
[1730960552485,7.92489671,187.79,187.73,7.92489671]
[1730960553111,0.5771875,187.8,187.71,7.92489671]
[1730960553112,7.92489671,187.78,187.71,7.92489671]
[1730960553317,7.92489671,187.76,187.7,7.92489671]
[1730960554313,7.92489671,187.77,187.7,7.92489671]
[1730960555114,7.92489671,187.76,187.7,7.92489671]
[1730960557516,7.92489671,187.76,187.66,15.7727]
[1730960557517,0.12549,187.75,187.66,15.7727]
[1730960557813,7.92489671,187.76,187.69,7.92489671]
[1730960558112,7.92489671,187.77,187.7,7.92489671]
[1730960558999,7.92489671,187.77,187.71,7.92489671]
[1730960559615,7.92489671,187.77,187.7,7.92489671]
[1730960560302,0.12549,187.79,187.7,7.92489671]
[1730960560510,7.92489671,187.76,187.7,7.92489671]
[1730960561205,7.92489671,187.76,187.69,7.92489671]
[1730960561410,0.12549,187.79,187.69,7.92489671]
[1730960561625,7.92489671,187.76,187.69,7.92489671]
[1730960562122,0.12549,187.79,187.69,7.92489671]
[1730960562298,7.92489671,187.76,187.69,7.92489671]
[1730960564116,7.92489671,187.75,187.69,7.92489671]
[1730960564727,7.92489671,187.76,187.69,7.92489671]
[1730960566608,7.92489671,187.76,187.67,43.776884]
[1730960566806,7.92489671,187.75,187.68,7.92489671]
[1730960567005,7.92489671,187.76,187.69,7.92489671]
[1730960567496,0.12549,187.79,187.69,7.92489671]
[1730960567699,7.92489671,187.76,187.69,7.92489671]
[1730960568199,7.92489671,187.76,187.7,7.92489671]
[1730960569625,0.12549,187.79,187.7,7.92489671]
[1730960569923,7.92489671,187.76,187.7,7.92489671]
[1730960570325,7.92489671,187.78,187.71,7.92489671]
[1730960570507,7.92489671,187.77,187.7,7.92489671]
[1730960571915,0.5771875,187.8,187.71,7.92489671]
[1730960572121,7.92489671,187.78,187.72,7.92489671]
[1730960572426,7.92489671,187.78,187.71,7.92489671]
[1730960575102,7.92489671,187.78,187.72,7.92489671]
[1730960575510,7.92489671,187.77,187.71,7.92489671]
[1730960575807,7.92489671,187.78,187.71,7.92489671]
[1730960576319,7.92489671,187.77,187.71,7.92489671]
[1730960577116,0.5771875,187.8,187.67,43.776884]
[1730960577117,7.92489671,187.76,187.67,43.776884]
[1730960577314,7.92489671,187.75,187.68,7.92489671]
[1730960577839,7.92489671,187.76,187.69,7.92489671]
[1730960581335,7.92489671,187.77,187.7,7.92489671]
[1730960583337,7.92489671,187.76,187.69,7.92489671]
[1730960584346,7.92489671,187.75,187.68,7.92489671]
[1730960585721,7.92489671,187.75,187.69,2.13041092]
[1730960585923,7.92489671,187.75,187.68,7.92489671]
[1730960586127,7.92489671,187.73,187.67,20.0]
[1730960586326,7.92489671,187.72,187.67,20.0]
[1730960587232,7.92489671,187.73,187.67,27.92489671]
[1730960587432,7.92489671,187.74,187.67,27.92489671]
[1730960590548,7.92489671,187.74,187.67,7.92489671]
[1730960591624,0.12549,187.77,187.68,7.92489671]
[1730960591829,7.92489671,187.75,187.68,7.92489671]
[1730960592750,7.92489671,187.74,187.67,27.92489671]
[1730960592938,0.12549,187.77,187.67,27.92489671]
[1730960593144,7.92489671,187.74,187.67,27.92489671]
[1730960594027,7.92489671,187.74,187.68,7.92489671]
[1730960594936,7.92489671,187.75,187.68,7.92489671]
[1730960595831,7.92489671,187.76,187.7,7.92489671]
[1730960596139,6.2727,187.78,187.7,7.92489671]
[1730960596140,7.92489671,187.77,187.7,7.92489671]
[1730960596330,7.92489671,187.77,187.71,7.92489671]
[1730960598351,7.92489671,187.76,187.69,7.92489671]
[1730960598852,7.92489671,187.77,187.7,7.92489671]
[1730960599867,0.5771875,187.8,187.71,7.92489671]
[1730960600158,7.92489671,187.78,187.71,7.92489671]
[1730960601235,0.5771875,187.8,187.74,7.92489671]
[1730960601443,0.5771875,187.8,187.72,7.92489671]
[1730960601650,7.92489671,187.79,187.72,7.92489671]
[1730960602837,7.92489671,187.78,187.71,7.92489671]
[1730960607442,7.92489671,187.76,187.69,7.92489671]
[1730960607641,0.12549,187.79,187.69,7.92489671]
[1730960607834,7.92489671,187.76,187.69,7.92489671]
[1730960608047,7.92489671,187.75,187.68,7.92489671]
[1730960608657,7.92489671,187.75,187.67,20.0]
[1730960608840,7.92489671,187.75,187.68,7.92489671]
[1730960609543,7.92489671,187.75,187.73,0.17434874]
[1730960610151,7.92489671,187.75,187.68,7.92489671]
[1730960610353,7.92489671,187.75,187.73,0.17435363]
[1730960611158,7.92489671,187.76,187.71,0.17435363]
[1730960611662,29.65138671,187.75,187.71,0.17435363]
[1730960611841,29.65138671,187.75,187.58,286.22434868]
[1730960611842,7.92489671,187.72,187.68,0.17435363]
[1730960612046,7.92489671,187.71,187.69,0.17435363]
[1730960612247,7.92489671,187.71,187.68,0.17435363]
[1730960613568,7.92489671,187.72,187.68,0.17435363]
[1730960613769,7.92489671,187.72,187.68,0.17454591]
[1730960614246,7.92489671,187.72,187.67,0.17454591]
[1730960614648,7.92489671,187.72,187.68,0.17454591]
[1730960615065,7.92489671,187.7,187.68,0.17454591]
[1730960615265,7.92489671,187.7,187.67,0.17454591]
[1730960615767,0.12549,187.74,187.67,0.17454591]
[1730960615969,7.92489671,187.71,187.67,0.17454591]
[1730960617255,7.92489671,187.71,187.67,0.17441132]
[1730960618147,7.92489671,187.72,187.67,0.17441132]
[1730960618654,7.92489671,187.72,187.66,0.17441132]
[1730960618975,7.92489671,187.72,187.67,0.17441132]
[1730960619266,7.92489671,187.71,187.67,0.17441132]
[1730960619471,7.92489671,187.72,187.67,0.17441132]
[1730960619660,7.92489671,187.72,187.66,0.17441132]
[1730960620365,7.92489671,187.69,187.66,0.17441132]
[1730960620572,7.92489671,187.69,187.65,0.17441132]
[1730960620950,7.92489671,187.7,187.65,0.17441132]
[1730960622060,7.92489671,187.71,187.65,0.17441132]
[1730960622249,0.12549,187.74,187.64,8.09930803]
[1730960622452,7.92489671,187.72,187.65,7.92489671]
[1730960623052,7.92489671,187.72,187.65,8.09930803]
[1730960623275,7.92489671,187.72,187.66,0.17441132]
[1730960623975,7.92489671,187.72,187.65,8.09930803]
[1730960624173,7.92489671,187.71,187.64,7.92489671]
[1730960624753,0.12549,187.74,187.66,7.92489671]
[1730960624978,7.92489671,187.75,187.68,7.92489671]
[1730960625292,22.8103,187.79,187.67,7.92489671]
[1730960625293,7.92489671,187.74,187.67,7.92489671]
[1730960627760,7.92489671,187.75,187.68,7.92489671]
[1730960629266,7.92489671,187.74,187.67,7.92489671]
[1730960630060,22.8103,187.79,187.7,7.92489671]
[1730960630284,7.92489671,187.75,187.69,7.92489671]
[1730960630462,22.8103,187.79,187.69,7.92489671]
[1730960630463,7.92489671,187.76,187.69,7.92489671]
[1730960631881,7.92489671,187.76,187.66,20.0]
[1730960632083,7.92489671,187.75,187.68,7.92489671]
[1730960632256,7.92489671,187.74,187.67,7.92489671]
[1730960633466,7.92489671,187.75,187.68,7.92489671]
[1730960633662,7.92489671,187.75,187.65,20.0]
[1730960633663,0.5771875,187.8,187.71,7.92489671]
[1730960634058,0.5771875,187.8,187.72,7.92489671]
[1730960634059,7.92489671,187.79,187.72,7.92489671]
[1730960634274,0.5771875,187.8,187.71,7.92489671]
[1730960634275,7.92489671,187.78,187.71,7.92489671]
[1730960635073,7.92489671,187.76,187.69,7.92489671]
[1730960635574,7.92489671,187.75,187.65,20.0]
[1730960635975,7.92489671,187.75,187.68,7.92489671]
[1730960636974,7.92489671,187.76,187.69,7.92489671]
[1730960639567,7.92489671,187.76,187.67,20.0]
[1730960639776,7.92489671,187.76,187.69,7.92489671]
[1730960643299,7.92489671,187.77,187.7,7.92489671]
[1730960643795,7.92489671,187.79,187.72,7.92489671]
[1730960645972,7.92489671,187.78,187.73,2.1304456]
[1730960646171,7.92489671,187.77,187.74,2.1304456]
[1730960646380,7.92489671,187.77,187.7,7.92489671]
[1730960646699,7.92489671,187.77,187.71,2.13043825]
[1730960646910,7.92489671,187.76,187.72,2.13043825]
[1730960647068,7.92489671,187.76,187.73,2.13043825]
[1730960647269,7.92489671,187.76,187.74,2.13043825]
[1730960647473,7.92489671,187.76,187.69,7.92489671]
[1730960647689,7.92489671,187.76,187.7,2.13049313]
[1730960647897,7.92489671,187.76,187.69,7.92489671]
[1730960648084,7.92489671,187.77,187.7,7.92489671]
[1730960653529,7.92489671,187.78,187.71,7.92489671]
[1730960655217,0.5771875,187.8,187.71,7.92489671]
[1730960655420,7.92489671,187.78,187.72,7.92489671]
[1730960657624,7.92489671,187.78,187.68,23.776884]
[1730960657812,7.92489671,187.78,187.72,7.92489671]
[1730960661128,7.92489671,187.79,187.68,23.776884]
[1730960661321,7.92489671,187.79,187.72,7.92489671]
[1730960663017,7.92489671,187.78,187.72,7.92489671]
[1730960663626,7.92489671,187.78,187.71,7.92489671]
[1730960663807,0.5771875,187.8,187.72,7.92489671]
[1730960664000,8.50208421,187.8,187.73,7.92489671]
[1730960664207,0.5771875,187.8,187.74,7.92489671]
[1730960665332,0.5771875,187.8,187.71,16.0407]
[1730960665333,8.50208421,187.8,187.73,7.92489671]
[1730960665512,7.92489671,187.79,187.73,7.92489671]
[1730960665808,8.50208421,187.8,187.73,7.92489671]
[1730960667023,0.5771875,187.8,187.71,16.0407]
[1730960667333,7.92489671,187.79,187.72,7.92489671]
[1730960667531,0.5771875,187.8,187.72,7.92489671]
[1730960667727,7.92489671,187.79,187.72,7.92489671]
[1730960668434,0.5771875,187.8,187.72,7.92489671]
[1730960668626,8.50208421,187.8,187.73,7.92489671]
[1730960673235,0.5771875,187.8,187.74,7.92489671]
[1730960678535,0.5771875,187.8,187.73,7.92489671]
[1730960682640,0.5771875,187.8,187.76,7.92489671]
[1730960683226,0.5771875,187.8,187.72,23.776884]
[1730960683441,0.5771875,187.8,187.76,7.92489671]
[1730960688431,0.5771875,187.8,187.76,8.08460697]
[1730960689623,0.5771875,187.8,187.77,7.92489671]
[1730960690750,0.5771875,187.8,187.79,7.92489671]
[1730960691048,0.5771875,187.8,187.79,23.38199671]
[1730960691229,0.5771875,187.8,187.79,67.15888071]
[1730960694128,0.5771875,187.8,187.79,59.233984]
[1730960694334,15.7085,187.93,187.83,160.0228125]